bitfinex/quotes_SOLUSD_20241122
["timestamp","ask_amount","ask_price","bid_price","bid_amount"]
[1732310256445,27.9630589,253.84,253.73,19.91899651]
[1732310257538,27.32655662,253.84,253.73,19.91899651]
[1732310258538,27.9630589,253.84,253.73,19.91899651]
[1732310261355,27.32655662,253.84,253.73,19.91899651]
[1732310261653,23.776884,253.85,253.73,19.91899651]
[1732310262245,23.776884,253.85,253.72,30.1107]
[1732310262246,23.776884,253.85,253.75,19.56235574]
[1732310263744,15.723585,253.86,253.77,19.80585424]
[1732310266949,23.776884,253.85,253.77,19.80585424]
[1732310268564,23.776884,253.85,253.76,30.1418]
[1732310271657,23.776884,253.85,253.76,49.35111775]
[1732310275763,23.776884,253.85,253.76,30.1418]
[1732310275964,23.776884,253.85,253.74,12.0452]
[1732310275965,24.41338628,253.85,253.74,12.0452]
[1732310276164,23.776884,253.83,253.7,52.56482655]
[1732310278175,24.41338628,253.83,253.7,52.56482655]
[1732310280972,15.723585,253.86,253.7,52.56482655]
[1732310282550,23.776884,253.85,253.7,52.56482655]
[1732310289067,23.776884,253.85,253.7,32.8761]
[1732310289255,23.776884,253.85,253.71,19.50809852]
[1732310292483,24.41338628,253.85,253.71,19.50809852]
[1732310296061,15.723585,253.86,253.71,19.50809852]
[1732310297360,23.776884,253.85,253.71,19.50809852]
[1732310298374,4.77027,253.91,253.71,19.50809852]
[1732310298375,23.776884,253.86,253.71,19.50809852]
[1732310298880,23.776884,253.87,253.71,19.50809852]
[1732310299389,23.776884,253.87,253.7,32.8761]
[1732310299390,15.721008,253.88,253.73,19.91899651]
[1732310299565,4.23526956,253.93,253.73,19.91899651]
[1732310299885,15.719715,253.9,253.73,19.91899651]
[1732310300593,23.776884,253.92,253.73,19.91899651]
[1732310300962,39.496561,253.92,253.73,19.91899651]
[1732310301979,39.496561,253.92,253.75,19.56235574]
[1732310302784,39.496561,253.92,253.75,51.97675574]
[1732310302964,4.77027,253.96,253.75,51.97675574]
[1732310303159,15.717228,253.94,253.75,51.97675574]
[1732310304068,23.776884,253.93,253.75,51.97675574]
[1732310306978,28.547154,253.93,253.75,51.97675574]
[1732310310677,15.717228,253.94,253.75,51.97675574]
[1732310311663,4.77027,253.99,253.75,51.97675574]
[1732310312081,19.95202656,253.98,253.75,51.97675574]
[1732310312274,23.776884,253.97,253.75,51.97675574]
[1732310314167,28.547154,253.97,253.75,51.97675574]
[1732310315184,32.78242356,253.97,253.75,51.97675574]
[1732310318789,28.547154,253.97,253.75,51.97675574]
[1732310319088,23.776884,253.95,253.75,51.97675574]
[1732310320089,4.77027,253.95,253.75,51.97675574]
[1732310320288,23.776884,253.94,253.75,51.97675574]
[1732310320668,4.77027,253.94,253.75,51.97675574]
[1732310320871,23.776884,253.93,253.75,51.97675574]
[1732310324089,23.776884,253.93,253.77,19.80585424]
[1732310324589,23.776884,253.93,253.81,19.36650297]
[1732310336597,23.776884,253.95,253.81,19.36650297]
[1732310336794,28.547154,253.95,253.81,19.36650297]
[1732310338998,23.776884,253.93,253.81,19.36650297]
[1732310347291,28.547154,253.93,253.81,19.36650297]
[1732310347491,23.776884,253.91,253.81,19.36650297]
[1732310352704,4.77027,253.91,253.81,19.36650297]
[1732310353011,23.776884,253.9,253.81,19.36650297]
[1732310353392,4.77027,253.89,253.81,19.36650297]
[1732310353607,23.776884,253.88,253.8,12.2635]
[1732310353812,23.776884,253.86,253.8,12.2635]
[1732310354123,28.547154,253.86,253.8,12.2635]
[1732310355504,23.776884,253.86,253.8,12.2635]
[1732310355809,23.776884,253.88,253.8,12.2635]
[1732310357404,23.776884,253.88,253.78,30.4373]
[1732310357597,23.776884,253.88,253.79,12.0814]
[1732310360293,23.776884,253.89,253.79,12.0814]
[1732310360507,4.77027,253.89,253.79,12.0814]
[1732310360706,23.776884,253.88,253.79,12.0814]
[1732310371621,23.776884,253.88,253.79,31.52791199]
[1732310378422,4.23526956,253.92,253.8,19.46790057]
[1732310378622,4.77027,253.95,253.81,32.0026]
[1732310378807,2.9366554,253.94,253.82,19.13759759]
[1732310379003,4.77027,253.95,253.82,19.13759759]
[1732310380530,23.776884,253.94,253.82,19.13759759]
[1732310381426,23.776884,253.94,253.83,32.32294295]
[1732310381621,23.776884,253.94,253.84,19.55089037]
[1732310381919,23.776884,253.94,253.83,13.2107]
[1732310381920,4.77027,253.94,253.83,13.2107]
[1732310382224,39.20342363,253.93,253.83,13.2107]
[1732310382428,28.547154,253.93,253.83,13.2107]
[1732310387443,4.77027,253.93,253.83,13.2107]
[1732310389130,23.776884,253.92,253.83,13.2107]
[1732310390934,23.776884,253.93,253.84,19.55089037]
[1732310392011,3.54967262,253.94,253.84,19.55089037]
[1732310392211,15.716757,253.98,253.83,32.32294295]
[1732310392635,19.95202656,253.98,253.83,32.32294295]
[1732310393326,23.776884,253.97,253.85,19.26852156]
[1732310394224,23.776884,253.97,253.84,50.09929037]
[1732310397424,3.54967262,253.96,253.84,50.09929037]
[1732310397723,23.776884,253.95,253.84,50.09929037]
[1732310398816,3.54967262,253.95,253.84,50.09929037]
[1732310399010,23.776884,253.93,253.84,50.09929037]
[1732310400932,27.32655662,253.93,253.84,50.09929037]
[1732310401132,27.32655662,253.93,253.85,19.26852156]
[1732310404218,32.09682662,253.93,253.78,19.6786357]
[1732310404532,23.776884,253.91,253.78,19.6786357]
[1732310406049,20.487027,253.98,253.77,19.80585424]
[1732310406235,24.03669962,253.98,253.81,19.36650297]
[1732310406546,4.77027,253.97,253.81,19.36650297]
[1732310407437,23.776884,253.96,253.81,19.36650297]
[1732310407839,4.77027,253.96,253.81,19.36650297]
[1732310408034,23.776884,253.95,253.81,19.36650297]
[1732310409835,32.09682662,253.95,253.81,19.36650297]
[1732310410553,23.776884,253.93,253.8,51.18590057]
[1732310410929,28.547154,253.93,253.8,51.18590057]
[1732310411136,23.776884,253.91,253.79,12.0085]
[1732310411538,27.32655662,253.91,253.79,12.0085]
[1732310411761,32.09682662,253.91,253.75,19.56235574]
[1732310411929,3.54967262,253.9,253.75,19.56235574]
[1732310412130,31.49590158,253.89,253.75,19.56235574]
[1732310412351,3.54967262,253.88,253.75,19.56235574]
[1732310412550,23.776884,253.87,253.75,19.56235574]
[1732310412767,3.54967262,253.87,253.75,19.56235574]
[1732310412936,23.776884,253.86,253.75,19.56235574]
[1732310413451,23.776884,253.86,253.74,30.2696]
[1732310413644,23.776884,253.86,253.75,19.56235574]
[1732310416333,23.776884,253.84,253.69,19.52865162]
[1732310416658,4.81664693,253.83,253.69,19.52865162]
[1732310416852,23.776884,253.82,253.69,19.52865162]
[1732310420269,28.59353093,253.82,253.69,19.52865162]
[1732310423558,4.81664693,253.89,253.69,19.52865162]
[1732310424261,4.81664693,253.89,253.7,2.5]
[1732310424446,4.81664693,253.89,253.71,19.50809852]
[1732310424956,23.776884,253.88,253.71,19.50809852]
[1732310426259,23.776884,253.88,253.69,19.52865162]
[1732310426655,23.776884,253.89,253.69,19.52865162]
[1732310427458,23.776884,253.88,253.69,19.52865162]
[1732310428650,23.776884,253.88,253.72,19.38373303]
[1732310429149,23.776884,253.88,253.74,19.2272748]
[1732310432382,23.776884,253.91,253.74,19.2272748]
[1732310434150,23.776884,253.91,253.75,50.82405574]
[1732310434665,4.79389693,253.95,253.75,50.82405574]
[1732310435379,4.79389693,253.95,253.77,19.80585424]
[1732310436948,23.776884,253.94,253.77,19.80585424]
[1732310442965,28.547154,253.94,253.77,19.80585424]
[1732310444681,23.776884,253.92,253.77,19.80585424]
[1732310447484,28.547154,253.92,253.77,19.80585424]
[1732310450091,23.776884,253.88,253.76,12.3636]
[1732310450274,23.776884,253.86,253.76,12.3636]
[1732310450589,23.776884,253.84,253.76,12.3636]
[1732310450789,4.09579181,253.83,253.76,12.3636]
[1732310450987,23.776884,253.82,253.76,12.3636]
[1732310451180,4.09579181,253.81,253.76,12.3636]
[1732310451491,23.776884,253.8,253.76,12.3636]
[1732310452693,23.776884,253.78,253.67,19.62366049]
[1732310452982,23.776884,253.76,253.67,19.62366049]
[1732310453183,4.09579181,253.75,253.67,19.62366049]
[1732310453394,23.776884,253.74,253.67,19.62366049]
[1732310453686,39.506477,253.74,253.67,19.62366049]
[1732310456874,43.60226881,253.74,253.61,19.14065297]
[1732310457094,4.09579181,253.73,253.61,19.14065297]
[1732310457272,23.776884,253.72,253.61,19.14065297]
[1732310457596,4.09579181,253.72,253.61,19.14065297]
[1732310457780,23.776884,253.71,253.61,19.14065297]
[1732310459890,7.71901758,253.63,253.45,19.83123676]
[1732310460078,5.01582555,253.7,253.45,19.83123676]
[1732310460079,23.776884,253.55,253.45,19.83123676]
[1732310461093,6.57959946,253.56,253.44,31.38833292]
[1732310461473,15.737932,253.55,253.44,31.38833292]
[1732310462297,14.64608068,253.55,253.44,31.38833292]
[1732310465799,14.64608068,253.55,253.44,33.88833292]
[1732310466593,14.64608068,253.55,253.44,31.38833292]
[1732310468673,14.64608068,253.55,253.44,33.88833292]
[1732310469398,14.64608068,253.55,253.44,31.38833292]
[1732310471803,23.776884,253.54,253.45,19.83123676]
[1732310472388,14.64608068,253.55,253.45,19.83123676]
[1732310473712,6.57959946,253.56,253.45,22.33123676]
[1732310474015,21.22568046,253.56,253.45,22.33123676]
[1732310474382,6.57959946,253.56,253.45,22.33123676]
[1732310475083,6.57959946,253.56,253.45,19.83123676]
[1732310482013,23.776884,253.55,253.45,19.83123676]
[1732310485603,6.57959946,253.56,253.45,19.83123676]
[1732310486516,6.57959946,253.56,253.48,51.71497743]
[1732310489123,6.57959946,253.56,253.5,19.43680679]
[1732310490826,23.776884,253.62,253.5,19.43680679]
[1732310495227,23.776884,253.62,253.49,32.14196495]
[1732310499741,23.776884,253.62,253.43,19.41728573]
[1732310499936,36.62723679,253.62,253.43,19.41728573]
[1732310500124,40.61180638,253.62,253.43,19.41728573]
[1732310500339,31.49590158,253.6,253.43,19.41728573]
[1732310500627,23.776884,253.58,253.37,19.61307515]
[1732310500827,2.93127198,253.57,253.37,19.61307515]
[1732310501027,23.776884,253.58,253.37,19.61307515]
[1732310501213,23.776884,253.56,253.37,19.61307515]
[1732310501413,23.776884,253.54,253.37,19.61307515]
[1732310502219,23.776884,253.56,253.37,19.61307515]
[1732310502414,23.776884,253.54,253.37,19.61307515]
[1732310502826,23.776884,253.56,253.37,19.61307515]
[1732310503036,23.776884,253.54,253.37,19.61307515]
[1732310503329,23.776884,253.56,253.37,19.61307515]
[1732310503510,23.776884,253.52,253.37,19.61307515]
[1732310507729,3.98456959,253.59,253.39,19.17065991]
[1732310507934,2.92801156,253.58,253.39,19.17065991]
[1732310508129,4.6848185,253.62,253.41,19.15673962]
[1732310508438,2.92802859,253.61,253.41,19.15673962]
[1732310508636,2.92802859,253.6,253.41,19.15673962]
[1732310508816,7.61284709,253.62,253.41,19.15673962]
[1732310509016,2.92802859,253.61,253.41,19.15673962]
[1732310509230,2.92802859,253.6,253.41,19.15673962]
[1732310509520,2.92802859,253.59,253.41,19.15673962]
[1732310509717,4.6848185,253.62,253.41,19.15673962]
[1732310509910,2.92793773,253.61,253.41,19.15673962]
[1732310510110,26.70482173,253.6,253.41,19.15673962]
[1732310510311,23.776884,253.62,253.41,19.15673962]
[1732310510512,23.776884,253.6,253.41,19.15673962]
[1732310510949,15.734474,253.63,253.41,19.15673962]
[1732310510950,23.776884,253.62,253.41,19.15673962]
[1732310511229,23.776884,253.6,253.41,19.15673962]
[1732310511435,23.776884,253.62,253.41,19.15673962]
[1732310511741,23.776884,253.6,253.41,19.15673962]
[1732310512221,23.776884,253.62,253.41,19.15673962]
[1732310512421,2.92816665,253.61,253.41,19.15673962]
[1732310512607,23.776884,253.6,253.41,19.15673962]
[1732310512931,23.776884,253.62,253.41,19.15673962]
[1732310513140,23.776884,253.6,253.41,19.15673962]
[1732310513314,23.776884,253.62,253.41,19.15673962]
[1732310513629,23.776884,253.6,253.41,19.15673962]
[1732310514130,23.776884,253.62,253.41,19.15673962]
[1732310514330,23.776884,253.6,253.41,19.15673962]
[1732310514629,23.776884,253.62,253.41,19.15673962]
[1732310515018,23.776884,253.62,253.4,19.04896901]
[1732310515223,23.776884,253.6,253.42,19.17658321]
[1732310515516,23.776884,253.62,253.42,19.17658321]
[1732310515727,23.776884,253.6,253.42,19.17658321]
[1732310516128,23.776884,253.62,253.42,19.17658321]
[1732310516343,23.776884,253.6,253.42,19.17658321]
[1732310516538,23.776884,253.62,253.42,19.17658321]
[1732310516734,23.776884,253.6,253.42,19.17658321]
[1732310516939,23.776884,253.62,253.42,19.17658321]
[1732310517150,23.776884,253.6,253.42,19.17658321]
[1732310517531,23.776884,253.62,253.42,19.17658321]
[1732310519448,23.776884,253.62,253.44,19.72761005]
[1732310523047,23.776884,253.62,253.42,32.28598321]
[1732310523231,23.776884,253.62,253.46,19.34528075]
[1732310529140,15.734474,253.63,253.46,19.34528075]
[1732310529337,15.734474,253.63,253.48,19.10713636]
[1732310530538,23.776884,253.62,253.48,19.10713636]
[1732310530853,15.734474,253.63,253.48,19.10713636]
[1732310531356,15.734474,253.63,253.51,19.70185441]
[1732310532842,15.734474,253.63,253.53,19.10422316]
[1732310533443,6.11041037,253.73,253.58,12.0549]
[1732310533635,10.99598927,253.77,253.59,19.64401392]
[1732310533839,15.728791,253.71,253.59,19.64401392]
[1732310534238,6.11041037,253.79,253.61,19.09680376]
[1732310534437,15.727558,253.77,253.61,19.09680376]
[1732310534853,2.93130299,253.76,253.61,19.09680376]
[1732310535063,15.727558,253.77,253.61,19.09680376]
[1732310536340,23.776884,253.76,253.61,19.09680376]
[1732310541457,23.776884,253.76,253.6,45.1819]
[1732310541458,23.776884,253.76,253.6,64.49370447]
[1732310541965,23.776884,253.74,253.6,64.49370447]
[1732310542345,23.776884,253.75,253.6,64.49370447]
[1732310543675,23.776884,253.75,253.48,0.09367462]
[1732310543676,23.776884,253.73,253.55,19.98104187]
[1732310549656,4.57955743,253.75,253.55,19.98104187]
[1732310549877,15.727558,253.77,253.55,19.98104187]
[1732310551168,23.776884,253.76,253.55,19.98104187]
[1732310553269,28.35644143,253.76,253.55,19.98104187]
[1732310553652,36.07545901,253.76,253.55,19.98104187]
[1732310554778,28.35644143,253.76,253.55,19.98104187]
[1732310556658,36.07545901,253.76,253.55,19.98104187]
[1732310556858,7.71901758,253.74,253.55,19.98104187]
[1732310557063,23.776884,253.73,253.55,19.98104187]
[1732310558257,23.776884,253.74,253.55,19.98104187]
[1732310558577,31.49590158,253.75,253.55,19.98104187]
[1732310559152,2.92821788,253.74,253.55,19.98104187]
[1732310559452,31.49590158,253.75,253.55,19.98104187]
[1732310559653,23.776884,253.73,253.55,19.98104187]
[1732310560072,23.776884,253.74,253.55,19.98104187]
[1732310560473,28.35644143,253.74,253.55,19.98104187]
[1732310562375,23.776884,253.72,253.55,19.98104187]
[1732310562997,31.49590158,253.73,253.55,19.98104187]
[1732310563478,23.776884,253.7,253.55,19.98104187]
[1732310563979,23.776884,253.68,253.55,19.98104187]
[1732310564689,23.776884,253.7,253.54,64.56220041]
[1732310565005,23.776884,253.66,253.54,64.56220041]
[1732310565179,2.93073455,253.65,253.54,64.56220041]
[1732310565492,23.776884,253.66,253.54,64.56220041]
[1732310566269,2.93120039,253.65,253.54,64.56220041]
[1732310566588,23.776884,253.66,253.54,64.56220041]
[1732310566884,23.776884,253.64,253.54,64.56220041]
[1732310567082,23.776884,253.66,253.54,64.56220041]
[1732310567287,23.776884,253.64,253.54,64.56220041]
[1732310567661,23.776884,253.66,253.54,64.56220041]
[1732310567867,23.776884,253.64,253.54,64.56220041]
[1732310568080,39.514037,253.64,253.54,64.56220041]
[1732310569665,11.28469828,253.7,253.54,64.56220041]
[1732310569666,4.88725084,253.73,253.6,19.31180447]
[1732310569867,2.93265823,253.72,253.6,19.31180447]
[1732310570093,15.72858,253.69,253.6,19.31180447]
[1732310573891,23.776884,253.68,253.6,19.31180447]
[1732310574385,23.776884,253.68,253.59,64.98581392]
[1732310576978,23.776884,253.68,253.53,63.24192316]
[1732310577884,23.776884,253.66,253.53,63.24192316]
[1732310578082,23.776884,253.64,253.53,63.24192316]
[1732310578279,23.776884,253.62,253.53,63.24192316]
[1732310578467,23.776884,253.64,253.53,63.24192316]
[1732310578794,7.71901758,253.67,253.53,63.24192316]
[1732310578795,23.776884,253.66,253.53,63.24192316]
[1732310579088,23.776884,253.64,253.53,63.24192316]
[1732310579293,23.776884,253.62,253.53,63.24192316]
[1732310579587,23.776884,253.64,253.53,63.24192316]
[1732310579973,23.776884,253.66,253.53,63.24192316]
[1732310580176,23.776884,253.64,253.53,63.24192316]
[1732310580581,23.776884,253.62,253.53,44.1377]
[1732310580983,23.776884,253.64,253.53,44.1377]
[1732310581187,23.776884,253.62,253.53,44.1377]
[1732310581385,23.776884,253.64,253.53,44.1377]
[1732310581894,23.776884,253.62,253.53,44.1377]
[1732310582185,23.776884,253.64,253.53,44.1377]
[1732310582385,23.776884,253.66,253.53,44.1377]
[1732310582590,23.776884,253.64,253.53,44.1377]
[1732310584093,15.72858,253.69,253.53,44.1377]
[1732310584094,23.776884,253.68,253.53,44.1377]
[1732310584273,23.776884,253.66,253.53,44.1377]
[1732310584473,23.776884,253.68,253.53,44.1377]
[1732310584674,23.776884,253.66,253.53,44.1377]
[1732310585099,23.776884,253.64,253.53,44.1377]
[1732310585286,23.776884,253.68,253.53,44.1377]
[1732310585479,23.776884,253.66,253.53,44.1377]
[1732310585679,2.93199691,253.65,253.53,44.1377]
[1732310585882,4.69117207,253.67,253.53,44.1377]
[1732310586075,26.7088632,253.66,253.53,44.1377]
[1732310586287,23.776884,253.64,253.53,44.1377]
[1732310586493,23.776884,253.62,253.53,44.1377]
[1732310587692,23.776884,253.6,253.51,19.70185441]
[1732310588485,23.776884,253.62,253.51,19.70185441]
[1732310588786,23.776884,253.6,253.51,19.70185441]
[1732310595029,23.776884,253.58,253.51,19.70185441]
[1732310596215,15.737805,253.59,253.51,19.70185441]
[1732310596406,15.737805,253.59,253.53,19.10422316]
[1732310605124,23.776884,253.58,253.53,19.10422316]
[1732310605323,15.737805,253.59,253.53,19.10422316]
[1732310605824,15.737805,253.59,253.56,19.41764551]
[1732310609017,19.01706233,253.74,253.57,19.18058664]
[1732310609218,15.729992,253.67,253.59,19.64401392]
[1732310610519,23.776884,253.66,253.59,19.64401392]
[1732310611117,35.62555135,253.67,253.59,19.64401392]
[1732310612517,15.729992,253.67,253.59,19.64401392]
[1732310613224,23.776884,253.66,253.59,19.64401392]
[1732310621534,23.776884,253.66,253.51,19.70185441]
[1732310621835,23.776884,253.66,253.51,62.10575441]
[1732310624439,2.92497249,253.65,253.51,62.10575441]
[1732310624736,23.776884,253.66,253.51,62.10575441]
[1732310625062,23.776884,253.64,253.51,62.10575441]
[1732310625413,23.776884,253.66,253.51,62.10575441]
[1732310625614,23.776884,253.64,253.51,62.10575441]
[1732310625825,7.71901758,253.65,253.5,0.09367462]
[1732310626015,15.7323,253.61,253.5,0.09367462]
[1732310626227,7.71901758,253.59,253.5,0.09367462]
[1732310626536,26.70004519,253.58,253.5,0.09367462]
[1732310626844,23.776884,253.56,253.5,0.09367462]
[1732310627026,23.776884,253.58,253.5,0.09367462]
[1732310627335,23.776884,253.56,253.5,0.09367462]
[1732310627640,23.776884,253.58,253.5,0.09367462]
[1732310627938,23.776884,253.56,253.5,0.09367462]
[1732310628133,23.776884,253.58,253.5,0.09367462]
[1732310628343,23.776884,253.56,253.5,0.09367462]
[1732310629142,23.776884,253.58,253.5,0.09367462]
[1732310629346,23.776884,253.56,253.5,0.09367462]
[1732310629537,23.776884,253.58,253.5,0.09367462]
[1732310629738,23.776884,253.56,253.5,0.09367462]
[1732310630320,15.7323,253.61,253.5,0.09367462]
[1732310630627,2.91970862,253.6,253.5,0.09367462]
[1732310630835,15.7323,253.61,253.5,0.09367462]
[1732310631035,2.9198237,253.6,253.5,0.09367462]
[1732310631337,2.04962546,253.64,253.5,0.09367462]
[1732310631636,23.776884,253.63,253.5,0.09367462]
[1732310631816,2.91946424,253.62,253.5,0.09367462]
[1732310632024,23.776884,253.61,253.5,0.09367462]
[1732310632720,23.776884,253.63,253.5,0.09367462]
[1732310632941,23.776884,253.61,253.5,0.09367462]
[1732310634045,23.776884,253.59,253.5,0.09367462]
[1732310634544,23.776884,253.61,253.5,0.09367462]
[1732310634920,2.91934472,253.6,253.5,0.09367462]
[1732310635130,23.776884,253.61,253.5,0.09367462]
[1732310635424,23.776884,253.59,253.5,0.09367462]
[1732310635626,23.776884,253.61,253.5,0.09367462]
[1732310635827,23.776884,253.59,253.5,0.09367462]
[1732310636220,23.776884,253.61,253.5,0.09367462]
[1732310636421,23.776884,253.57,253.5,0.09367462]
[1732310639352,15.741481,253.58,253.5,0.09367462]
[1732310640646,23.776884,253.57,253.5,0.09367462]
[1732310643252,15.741481,253.58,253.5,0.09367462]
[1732310644328,15.741481,253.58,253.52,32.0924]
[1732310644526,23.776884,253.57,253.52,32.0924]
[1732310646833,23.776884,253.57,253.51,12.3131]
[1732310651543,23.776884,253.57,253.46,51.43768075]
[1732310651544,0.19114687,253.48,253.46,51.43768075]
[1732310652132,0.19114687,253.48,253.46,32.0924]
[1732310652350,0.19114687,253.48,253.27,19.75474294]
[1732310652649,0.19114687,253.48,253.25,19.09419304]
[1732310653155,0.19114687,253.48,253.28,32.7509]
[1732310653347,0.19114687,253.48,253.29,19.72350176]
[1732310654558,0.19114687,253.48,253.31,19.53887595]
[1732310654737,23.776884,253.47,253.31,19.53887595]
[1732310659550,7.71901758,253.41,253.28,32.7509]
[1732310659741,7.71901758,253.41,253.24,12.147]
[1732310659742,23.776884,253.38,253.24,12.147]
[1732310660035,23.776884,253.36,253.24,12.147]
[1732310660641,28.82854553,253.35,253.23,19.17932301]
[1732310660864,28.82854553,253.35,253.22,33.30457462]
[1732310661043,23.776884,253.35,253.22,33.30457462]
[1732310662661,23.776884,253.35,253.22,52.81332505]
[1732310663959,3.82381849,253.42,253.22,52.81332505]
[1732310664140,23.45131758,253.46,253.22,33.30457462]
[1732310664343,23.45131758,253.46,253.23,19.17932301]
[1732310664545,15.7323,253.46,253.23,19.17932301]
[1732310664859,15.7323,253.46,253.22,33.30457462]
[1732310664860,15.7323,253.46,253.25,19.09419304]
[1732310665843,23.776884,253.45,253.25,19.09419304]
[1732310666367,31.49590158,253.45,253.25,19.09419304]
[1732310668548,23.776884,253.45,253.25,19.09419304]
[1732310671867,4.71488931,253.5,253.27,19.75474294]
[1732310672170,32.20338645,253.52,253.27,19.75474294]
[1732310672954,23.776884,253.51,253.27,19.75474294]
[1732310674251,12.10660486,253.5,253.27,19.75474294]
[1732310674467,23.776884,253.47,253.26,31.0003]
[1732310674670,23.776884,253.45,253.26,31.0003]
[1732310674872,28.49177331,253.45,253.26,31.0003]
[1732310678169,23.776884,253.46,253.27,19.75474294]
[1732310679855,23.776884,253.46,253.28,31.6807992]
[1732310682480,23.776884,253.47,253.28,31.6807992]
[1732310683665,12.10660486,253.46,253.28,12.351]
[1732310683976,23.776884,253.45,253.28,12.351]
[1732310684282,27.60070249,253.45,253.28,12.351]
[1732310686876,3.82381849,253.44,253.28,12.351]
[1732310687074,23.776884,253.43,253.28,12.351]
[1732310688890,23.776884,253.43,253.29,30.8582]
[1732310689187,3.82381849,253.44,253.29,30.8582]
[1732310690463,23.776884,253.43,253.29,30.8582]
[1732310690873,3.82381849,253.44,253.29,30.8582]
[1732310692058,23.776884,253.43,253.29,30.8582]
[1732310697107,3.82381849,253.44,253.31,19.53887595]
[1732310698989,23.776884,253.45,253.31,19.53887595]
[1732310699379,23.776884,253.45,253.32,19.57293675]
[1732310699580,23.776884,253.45,253.31,19.53887595]
[1732310699968,4.36448159,253.48,253.31,19.53887595]
[1732310699969,23.776884,253.47,253.31,19.53887595]
[1732310700165,23.776884,253.45,253.31,19.53887595]
[1732310700789,23.776884,253.46,253.31,19.53887595]
[1732310701579,23.776884,253.48,253.31,19.53887595]
[1732310701896,2.93100935,253.47,253.31,19.53887595]
[1732310702195,23.776884,253.48,253.31,19.53887595]
[1732310702493,23.776884,253.46,253.31,19.53887595]
[1732310702797,23.776884,253.46,253.3,65.26189595]
[1732310703093,3.82381849,253.47,253.3,65.26189595]
[1732310703094,23.776884,253.44,253.3,65.26189595]
[1732310703396,23.776884,253.46,253.3,65.26189595]
[1732310703587,23.776884,253.44,253.3,65.26189595]
[1732310703775,23.776884,253.46,253.3,65.26189595]
[1732310703975,23.776884,253.44,253.3,65.26189595]
[1732310704377,3.82381849,253.47,253.3,65.26189595]
[1732310704378,23.776884,253.46,253.3,45.5223]
[1732310704670,4.71488931,253.48,253.3,45.5223]
[1732310704671,23.776884,253.44,253.3,45.5223]
[1732310704888,23.776884,253.42,253.3,45.5223]
[1732310705495,23.776884,253.44,253.3,45.5223]
[1732310705797,23.776884,253.42,253.3,45.5223]
[1732310706001,23.776884,253.44,253.3,45.5223]
[1732310706187,23.776884,253.42,253.3,45.5223]
[1732310706372,27.60070249,253.44,253.3,45.5223]
[1732310706569,23.776884,253.42,253.3,45.5223]
[1732310707107,23.776884,253.4,253.3,45.5223]
[1732310707305,23.776884,253.43,253.3,45.5223]
[1732310707477,23.776884,253.41,253.3,45.5223]
[1732310707981,23.776884,253.43,253.3,45.5223]
[1732310708195,27.60070249,253.43,253.3,45.5223]
[1732310708496,23.776884,253.41,253.3,45.5223]
[1732310708699,2.93118074,253.4,253.3,45.5223]
[1732310708872,23.776884,253.39,253.3,45.5223]
[1732310709073,2.93232843,253.38,253.3,45.5223]
[1732310709295,23.776884,253.42,253.3,45.5223]
[1732310709487,23.776884,253.4,253.3,45.5223]
[1732310709680,2.93312247,253.39,253.3,45.5223]
[1732310709880,23.776884,253.42,253.3,45.5223]
[1732310710080,23.776884,253.4,253.3,45.5223]
[1732310710284,2.933686,253.39,253.3,45.5223]
[1732310710593,23.776884,253.42,253.3,45.5223]
[1732310710891,23.776884,253.4,253.3,45.5223]
[1732310711093,2.93418389,253.39,253.3,45.5223]
[1732310711395,23.776884,253.42,253.3,45.5223]
[1732310711599,23.776884,253.4,253.3,45.5223]
[1732310711779,2.93405321,253.39,253.3,45.5223]
[1732310711979,23.776884,253.42,253.3,45.5223]
[1732310712178,2.93410397,253.41,253.3,45.5223]
[1732310712388,23.776884,253.39,253.3,45.5223]
[1732310715592,23.776884,253.37,253.3,45.5223]
[1732310716099,23.776884,253.42,253.3,65.26189595]
[1732310716304,23.776884,253.4,253.3,65.26189595]
[1732310716604,23.776884,253.42,253.3,65.26189595]
[1732310716900,3.82381849,253.42,253.31,19.53887595]
[1732310717077,3.82381849,253.42,253.3,65.26189595]
[1732310717907,23.776884,253.41,253.3,65.26189595]
[1732310718087,27.60070249,253.41,253.3,65.26189595]
[1732310720082,15.745923,253.49,253.32,19.57293675]
[1732310720293,7.62800927,253.48,253.32,19.57293675]
[1732310720585,2.93384972,253.47,253.32,19.57293675]